bitfinex/quotes_BTCUSD_20230405
["timestamp","ask_amount","ask_price","bid_price","bid_amount"]
[1680689336483,0.55606386,28517.0,28516.0,0.013]
[1680689336885,0.55422798,28517.0,28513.0,0.19561282]
[1680689337049,0.0738,28515.0,28513.0,0.19543282]
[1680689338894,0.0733,28514.0,28513.0,0.19543282]
[1680689339107,0.0733,28514.0,28513.0,0.52956172]
[1680689340347,0.0733,28514.0,28513.0,0.65565403]
[1680689340750,0.0733,28514.0,28513.0,0.54256172]
[1680689340961,0.0733,28514.0,28513.0,0.52956172]
[1680689341231,0.0753,28514.0,28513.0,0.54256172]
[1680689342211,0.0753,28514.0,28513.0,0.66865403]
[1680689345121,0.0753,28514.0,28513.0,0.54256172]
[1680689362418,0.07523288,28514.0,28513.0,0.54256172]
[1680689362989,0.49184723,28519.0,28514.0,0.11428016]
[1680689363198,0.49184723,28519.0,28514.0,0.18468016]
[1680689363199,0.0736,28515.0,28514.0,0.18468016]
[1680689363410,0.0736,28515.0,28514.0,0.11446016]
[1680689363613,0.0736,28515.0,28514.0,0.00012]
[1680689363819,0.0736,28515.0,28513.0,0.09718081]
[1680689364060,0.0738,28514.0,28513.0,0.08418081]
[1680689365048,0.0738,28514.0,28513.0,0.50466878]
[1680689365827,0.0758,28514.0,28513.0,0.51866878]
[1680689368291,2.51986409,28523.0,28513.0,0.09800081]
[1680689368660,0.0733,28518.0,28514.0,0.0704]
[1680689368793,0.0733,28515.0,28513.0,0.09800081]
[1680689368992,0.0733,28515.0,28513.0,0.08400081]
[1680689369199,0.0733,28515.0,28513.0,0.10000081]
[1680689369400,0.0733,28515.0,28513.0,0.22609312]
[1680689369635,0.0733,28515.0,28513.0,0.21009312]
[1680689369927,0.0753,28515.0,28513.0,0.22609312]
[1680689370328,0.0753,28515.0,28514.0,0.0055]
[1680689371023,0.0753,28515.0,28514.0,0.3615432]
[1680689371232,0.0838,28515.0,28514.0,0.3615432]
[1680689372049,0.0818,28515.0,28514.0,0.3615432]
[1680689372253,0.0838,28515.0,28514.0,0.3775432]
[1680689374137,0.0838,28515.0,28514.0,0.46154401]
[1680689377989,0.0838,28515.0,28514.0,0.58763632]
[1680689379069,0.0838,28515.0,28514.0,0.46154401]
[1680689379273,0.0838,28515.0,28514.0,0.58763632]
[1680689380310,0.0838,28515.0,28514.0,0.50363551]
[1680689382943,0.0838,28515.0,28514.0,0.14934531]
[1680689385724,0.0838,28515.0,28514.0,0.51620425]
[1680689388940,0.0105,28515.0,28514.0,0.51620425]
[1680689392367,0.0104059,28515.0,28514.0,0.51620425]
[1680689392718,0.0104059,28515.0,28514.0,0.14934531]
[1680689393193,0.0104059,28515.0,28514.0,0.49839685]
[1680689397564,0.0104059,28515.0,28514.0,0.54043042]
[1680689403340,0.0104059,28515.0,28514.0,0.54032302]
[1680689408601,0.002,28515.0,28514.0,0.54032302]
[1680689413422,0.06323424,28516.0,28515.0,0.45090751]
[1680689413594,0.06323424,28516.0,28515.0,0.66285403]
[1680689413801,0.07173424,28516.0,28515.0,0.66285403]
[1680689414792,0.07273424,28516.0,28515.0,0.67791403]
[1680689415011,0.07273424,28516.0,28515.0,0.67785403]
[1680689416563,0.07273424,28516.0,28515.0,0.55173792]
[1680689417857,0.07273424,28516.0,28515.0,0.67785403]
[1680689418548,0.07273424,28516.0,28515.0,0.55173792]
[1680689418935,0.0095,28516.0,28515.0,0.55173792]
[1680689419492,0.0095,28516.0,28515.0,0.54998492]
[1680689427396,0.0637,28517.0,28516.0,0.34618166]
[1680689429043,0.0647,28517.0,28516.0,0.35518166]
[1680689429451,0.0732,28517.0,28516.0,0.35518166]
[1680689434983,0.06721466,28517.0,28516.0,0.35518166]
[1680689435594,0.06721466,28517.0,28516.0,0.36154166]
[1680689440656,0.06152079,28517.0,28516.0,0.36148166]
[1680689441578,0.06152079,28517.0,28516.0,0.44555907]
[1680689454549,0.06152079,28517.0,28516.0,0.44731207]
[1680689459525,0.06152079,28517.0,28516.0,0.44555907]
[1680689460543,0.06152079,28517.0,28516.0,0.44731207]
[1680689463647,0.09439888,28517.0,28516.0,0.44731207]
[1680689463825,0.09439888,28517.0,28516.0,0.44737207]
[1680689466355,0.09439888,28517.0,28516.0,0.44731207]
[1680689466987,0.09439888,28517.0,28516.0,0.44555907]
[1680689470251,0.09020815,28517.0,28516.0,0.44555907]
[1680689478981,0.04244992,28517.0,28516.0,0.44555907]
[1680689488082,0.04244992,28517.0,28516.0,0.36148166]
[1680689488311,0.04244992,28517.0,28516.0,0.44555907]
[1680689489040,0.11624992,28517.0,28516.0,0.36148166]
[1680689491007,0.11624992,28517.0,28516.0,0.36148166]
[1680689491566,0.11624992,28517.0,28516.0,0.44555907]
[1680689491771,0.11624992,28517.0,28516.0,0.36154166]
[1680689492035,0.11624992,28517.0,28516.0,0.36148166]
[1680689492228,0.11624992,28517.0,28516.0,0.44555907]
[1680689492431,0.11624992,28517.0,28516.0,0.36148166]
[1680689493634,0.11624992,28517.0,28516.0,0.36323466]
[1680689494091,0.11624992,28517.0,28516.0,0.36148166]
[1680689494731,0.11624992,28517.0,28516.0,0.36323466]
[1680689495113,0.11615177,28517.0,28516.0,0.36323466]
[1680689495333,0.11615177,28517.0,28516.0,0.36148166]
[1680689495655,0.11615177,28517.0,28516.0,0.36323466]
[1680689496216,0.11615177,28517.0,28516.0,0.36329466]
[1680689496417,0.11615177,28517.0,28516.0,0.36323466]
[1680689499277,0.11615177,28517.0,28516.0,0.36154166]
[1680689505748,0.11615177,28517.0,28516.0,0.36140594]
[1680689507215,0.11615177,28517.0,28516.0,0.57159946]
[1680689507425,0.11615177,28517.0,28516.0,0.48927505]
[1680689507638,0.04235177,28517.0,28516.0,0.48927505]
[1680689508070,0.03385177,28517.0,28516.0,0.48927505]
[1680689508283,0.03385177,28517.0,28516.0,0.65740093]
[1680689508622,0.03385177,28517.0,28516.0,0.65746093]
[1680689508827,0.03385177,28517.0,28516.0,0.48933505]
[1680689509228,0.03385177,28517.0,28516.0,0.48945505]
[1680689509429,0.03385177,28517.0,28516.0,0.53146482]
[1680689509649,0.03385177,28517.0,28516.0,0.48947329]
[1680689516989,0.03385177,28517.0,28516.0,0.57352406]
[1680689518546,0.03385177,28517.0,28516.0,0.48947329]
[1680689518749,0.03385177,28517.0,28516.0,0.57352274]
[1680689520376,0.03385177,28517.0,28516.0,0.44738839]
[1680689523816,0.04382449,28517.0,28516.0,0.44738839]
[1680689529107,0.04372038,28517.0,28516.0,0.44551539]
[1680689529311,0.04372038,28517.0,28516.0,0.44720839]
[1680689531220,0.00963742,28521.0,28517.0,0.42569869]
[1680689531426,0.0085,28520.0,28517.0,0.49960469]
[1680689531622,0.0085,28520.0,28518.0,0.001753]
[1680689532265,0.0085,28520.0,28519.0,0.017]
[1680689532473,0.0085,28520.0,28519.0,0.018753]
[1680689533174,0.0195,28520.0,28519.0,0.019753]
[1680689533580,0.0195,28520.0,28519.0,0.36027294]
[1680689534621,0.0195,28520.0,28519.0,0.35851994]
[1680689534825,0.11197646,28520.0,28519.0,0.018]
[1680689535655,0.11445146,28520.0,28519.0,0.018]
[1680689536262,0.18825146,28520.0,28519.0,0.018]
[1680689537972,0.54296202,28520.0,28519.0,0.018]
[1680689539089,0.61626202,28520.0,28519.0,0.018]
[1680689539617,0.65800145,28520.0,28519.0,0.018]
[1680689543311,0.60397845,28520.0,28519.0,0.018]
[1680689543514,0.65624945,28520.0,28519.0,0.018]
[1680689543734,0.65772445,28520.0,28519.0,0.018]
[1680689543950,0.60397845,28520.0,28519.0,0.018]
[1680689544155,0.56304999,28520.0,28519.0,0.40530036]
[1680689544384,0.20863943,28520.0,28519.0,0.40705336]
[1680689544613,0.20833943,28520.0,28519.0,0.40705336]
[1680689547429,0.20833943,28520.0,28519.0,0.40711336]
[1680689547669,0.20833943,28520.0,28519.0,0.40705336]
[1680689552347,0.13453943,28520.0,28519.0,0.40705336]
[1680689559888,0.12603943,28520.0,28519.0,0.40705336]
[1680689560318,0.12603943,28520.0,28519.0,0.40530036]
[1680689561299,0.10461407,28523.0,28519.0,0.37271056]
[1680689561488,0.0003,28522.0,28520.0,0.58084491]
[1680689561712,0.0736,28523.0,28521.0,0.26803413]
[1680689561924,0.0736,28523.0,28522.0,0.41384239]
[1680689562545,0.0736,28523.0,28522.0,0.43734239]
[1680689562779,0.0736,28523.0,28522.0,0.43746239]
[1680689562983,0.0736,28523.0,28522.0,0.43752239]
[1680689563198,0.0736,28523.0,28522.0,0.02368]
[1680689563399,0.0746,28523.0,28522.0,0.0395]
[1680689563614,0.07439372,28523.0,28522.0,0.0395]
[1680689564477,0.07439372,28523.0,28522.0,0.41337102]
[1680689566178,0.001,28523.0,28522.0,0.41337102]
[1680689569703,0.03880541,28523.0,28522.0,0.41337102]
[1680689575533,0.03880541,28523.0,28522.0,0.76808158]
[1680689578801,0.03880541,28523.0,28522.0,0.46809056]
[1680689578963,0.03880541,28523.0,28522.0,0.46791056]
[1680689579163,0.03880541,28523.0,28522.0,0.46797056]
[1680689579569,0.001,28523.0,28522.0,0.46803056]
[1680689579820,0.04900556,28525.0,28522.0,0.45197056]
[1680689579964,0.04900556,28525.0,28523.0,0.35471056]
[1680689580159,0.02398,28527.0,28524.0,0.32920231]
[1680689580407,0.02398,28527.0,28524.0,0.68391287]
[1680689581565,0.02398,28527.0,28525.0,0.0221]
[1680689582754,0.02398,28527.0,28526.0,0.42794285]
[1680689584032,0.02398,28527.0,28526.0,0.44994285]
[1680689585480,0.02398,28527.0,28526.0,0.47144285]
[1680689585881,0.01898,28527.0,28526.0,0.47144285]
[1680689587850,0.06126236,28527.0,28526.0,0.0435]
[1680689588065,0.25801747,28527.0,28526.0,0.0435]
[1680689589378,0.26651747,28527.0,28526.0,0.0435]
[1680689589779,0.26651747,28527.0,28526.0,0.03160927]
[1680689593949,0.20836236,28527.0,28526.0,0.03160927]
[1680689594558,0.20336236,28527.0,28526.0,0.03160927]
[1680689595631,0.20336236,28527.0,28526.0,0.02767882]
[1680689596977,0.20336236,28527.0,28526.0,0.02943082]
[1680689599063,0.12956236,28527.0,28526.0,0.02943082]
[1680689617712,0.12956236,28527.0,28526.0,0.47850465]
[1680689619737,0.12956236,28527.0,28526.0,0.47675265]
[1680689620852,0.12945505,28527.0,28526.0,0.47681265]
[1680689625781,0.12945505,28527.0,28526.0,0.02773882]
[1680689625982,0.25267732,28527.0,28526.0,0.02767882]
[1680689628663,0.21039496,28527.0,28526.0,0.02767882]
[1680689630485,0.21027811,28527.0,28526.0,0.02767882]
[1680689632674,0.24018557,28527.0,28526.0,0.02767882]
[1680689649823,0.24018557,28527.0,28526.0,0.02758492]
[1680689651415,0.24018557,28527.0,28526.0,0.0215]
[1680689651625,0.24018557,28527.0,28526.0,0.0225]
[1680689655042,0.24048557,28527.0,28526.0,0.0225]
[1680689657275,0.16708557,28527.0,28526.0,0.0225]
[1680689658027,0.16678557,28527.0,28526.0,0.0225]
[1680689659101,0.24058557,28527.0,28526.0,0.0225]
[1680689659279,0.24088557,28527.0,28526.0,0.0225]
[1680689668045,0.59559613,28527.0,28526.0,0.0225]
[1680689668191,0.64664113,28527.0,28526.0,0.0215]
[1680689668528,1.9081471,28527.0,28526.0,0.0215]
[1680689668821,1.9078471,28527.0,28526.0,0.01812804]
[1680689668934,2.0558471,28527.0,28526.0,0.01812804]
[1680689669140,2.0558471,28527.0,28526.0,0.01912804]
[1680689669397,2.0558471,28527.0,28526.0,0.01812804]
[1680689669888,2.0558471,28527.0,28526.0,0.01479823]
[1680689670092,2.0678471,28527.0,28526.0,0.01579823]
[1680689670816,2.0678471,28527.0,28526.0,0.01251004]
[1680689671662,2.0678471,28527.0,28526.0,0.00926295]
[1680689679124,1.9201471,28527.0,28526.0,0.00926295]
[1680689679883,1.8691021,28527.0,28526.0,0.001]
[1680689681294,0.56627386,28527.0,28526.0,0.001]
[1680689681492,0.56657386,28527.0,28526.0,0.001]
[1680689681922,0.2115633,28527.0,28526.0,0.001]
[1680689682471,0.2115633,28527.0,28526.0,0.0205]
[1680689689031,0.1382633,28527.0,28526.0,0.0205]
[1680689695803,0.0641633,28527.0,28526.0,0.022252]
[1680689696028,0.0556633,28527.0,28526.0,0.45351988]
[1680689696240,0.0556633,28527.0,28526.0,0.53750249]
[1680689696711,0.0555986,28527.0,28526.0,0.53750249]
[1680689697152,0.0555986,28527.0,28526.0,0.53768249]
[1680689697562,0.0435986,28527.0,28526.0,0.53668249]
[1680689698232,0.0445986,28527.0,28526.0,0.55068249]
[1680689699076,0.0435986,28527.0,28526.0,0.53668249]
[1680689699468,0.0445986,28527.0,28526.0,0.55768249]
[1680689700653,0.0445986,28527.0,28526.0,0.47194788]
[1680689700838,0.0445986,28527.0,28526.0,0.47369988]
[1680689706999,0.0445986,28527.0,28526.0,0.47357988]
[1680689707416,0.0445986,28527.0,28526.0,0.47194788]
[1680689711948,1.05439662,28527.0,28526.0,0.47194788]
[1680689712549,1.10848662,28527.0,28526.0,0.47194788]
[1680689712962,1.05439662,28527.0,28526.0,0.47194788]
[1680689713687,1.10805362,28527.0,28526.0,0.47194788]
[1680689714291,1.05439662,28527.0,28526.0,0.47194788]
[1680689715327,1.10869762,28527.0,28526.0,0.47194788]
[1680689715749,1.05439662,28527.0,28526.0,0.47369988]
[1680689717593,1.05439662,28527.0,28526.0,0.47194788]
[1680689719017,1.05439662,28527.0,28526.0,0.04068]
[1680689719018,1.55950399,28527.0,28526.0,0.04068]
[1680689719219,2.07261318,28527.0,28526.0,0.0405]
[1680689719653,2.07161318,28527.0,28526.0,0.0195]
[1680689719853,2.07161318,28527.0,28526.0,0.01646388]
[1680689720058,2.07191318,28527.0,28526.0,0.01646388]
[1680689720259,2.10996412,28527.0,28526.0,0.03146388]
[1680689720582,2.07291318,28527.0,28526.0,0.01646388]
[1680689720769,2.07261318,28527.0,28526.0,0.01334332]
[1680689721193,2.09061318,28527.0,28526.0,0.01534332]
[1680689721843,2.09061318,28527.0,28526.0,0.01226177]
[1680689722917,2.09061318,28527.0,28526.0,0.002]
[1680689723089,2.14125074,28527.0,28526.0,0.002]
[1680689723870,0.053342,28526.0,28524.0,0.25203017]
[1680689724069,0.163111,28525.0,28524.0,0.25209017]
[1680689724256,0.217158,28525.0,28524.0,0.25209017]
[1680689724609,0.210147,28525.0,28524.0,0.25209017]
[1680689725241,0.26218865,28525.0,28524.0,0.25209017]
[1680689726055,0.26818865,28525.0,28524.0,0.25309017]
[1680689729744,0.29791438,28525.0,28524.0,0.25309017]
[1680689736198,0.29791438,28525.0,28524.0,0.25309017]
[1680689736624,0.65262494,28525.0,28524.0,0.25719017]
[1680689739852,0.60584129,28525.0,28524.0,0.25309017]
[1680689740082,0.90584129,28525.0,28524.0,0.25309017]
[1680689740292,0.90584129,28525.0,28524.0,0.25303017]
[1680689740712,0.94545171,28525.0,28524.0,0.25303017]
[1680689741180,0.94545171,28525.0,28524.0,0.25297017]
[1680689741799,0.93945171,28525.0,28524.0,0.25197017]
[1680689742422,0.96445171,28525.0,28524.0,0.25297017]
[1680689743073,1.16565917,28525.0,28524.0,0.25297017]
[1680689743940,1.16595917,28525.0,28524.0,0.25291017]
[1680689745321,1.16595917,28525.0,28524.0,0.25297017]
[1680689745719,1.16595917,28525.0,28524.0,0.25291017]
[1680689746497,1.27374875,28525.0,28524.0,0.25291017]
[1680689747790,1.3231932,28525.0,28524.0,0.25291017]
[1680689748008,2.28354677,28525.0,28524.0,0.25291017]
[1680689748421,2.25854677,28525.0,28524.0,0.25191017]
[1680689748600,2.32496002,28525.0,28524.0,0.25191017]
[1680689749244,2.30096002,28525.0,28524.0,0.25191017]
[1680689749627,2.32796002,28525.0,28524.0,0.25138074]
[1680689752525,2.33657997,28525.0,28524.0,0.25138074]
[1680689755968,2.54334923,28525.0,28524.0,0.25138074]
[1680689756139,2.34214177,28525.0,28524.0,0.25138074]
[1680689759074,2.19494177,28525.0,28524.0,0.25138074]
[1680689776716,2.12094177,28525.0,28524.0,0.25138074]
[1680689777537,2.20493473,28525.0,28524.0,0.25138074]
[1680689777754,1.99816547,28525.0,28524.0,0.25138074]
[1680689777963,2.22810106,28525.0,28524.0,0.25138074]
[1680689778190,2.1441081,28525.0,28524.0,0.25138074]
[1680689778406,2.22810106,28525.0,28524.0,0.25138074]
[1680689779510,2.22810106,28525.0,28524.0,0.25144074]
[1680689779943,2.22810106,28525.0,28524.0,0.25138074]
[1680689782333,2.1441081,28525.0,28524.0,0.25138074]
[1680689784624,2.27021527,28525.0,28524.0,0.25138074]
[1680689788403,2.1441081,28525.0,28524.0,0.25138074]
[1680689790181,2.1441081,28525.0,28524.0,0.25144074]
[1680689790388,2.31209427,28525.0,28524.0,0.25138074]
[1680689790589,2.1441081,28525.0,28524.0,0.25138074]
[1680689790799,2.26968102,28525.0,28524.0,0.25138074]
[1680689791010,2.44496102,28525.0,28524.0,0.25138074]
[1680689791207,2.44496102,28525.0,28524.0,0.24661019]
[1680689791208,2.87825599,28525.0,28524.0,0.24661019]
[1680689791408,2.65952506,28525.0,28524.0,0.24337089]
[1680689791699,1.73222704,28525.0,28524.0,0.24331089]
[1680689792214,1.5249806,28525.0,28524.0,0.24331089]
[1680689792417,1.73515897,28525.0,28524.0,0.24331089]
[1680689793497,1.7354806,28525.0,28524.0,0.22379224]
[1680689793704,2.26700665,28525.0,28524.0,0.19660213]
[1680689793915,3.43530665,28525.0,28524.0,0.19660213]
[1680689794125,3.84666738,28525.0,28524.0,0.19660213]
[1680689794337,3.6603623,28525.0,28524.0,0.19660213]
[1680689794559,3.43530665,28525.0,28524.0,0.19660213]
[1680689794772,3.43530665,28525.0,28524.0,0.19378648]
[1680689794981,3.42199759,28525.0,28524.0,0.19384648]
[1680689795868,3.39529759,28525.0,28524.0,0.19102222]
[1680689796070,3.39529759,28525.0,28524.0,0.184974]
[1680689796282,3.17620844,28525.0,28524.0,0.184974]
[1680689796493,3.20320844,28525.0,28524.0,0.184974]
[1680689796734,3.17620844,28525.0,28524.0,0.184974]
[1680689796943,3.20320844,28525.0,28524.0,0.184974]
[1680689797595,3.17788973,28525.0,28524.0,0.185034]
[1680689797814,3.17788973,28525.0,28524.0,0.18234629]
[1680689798078,3.17818973,28525.0,28524.0,0.18234629]
[1680689798785,3.17818973,28525.0,28524.0,0.17978188]
[1680689798990,3.03058973,28525.0,28524.0,0.17978188]
[1680689799187,2.86228973,28525.0,28524.0,0.17978188]
[1680689799393,3.03058973,28525.0,28524.0,0.17978188]
[1680689799797,3.03058973,28525.0,28524.0,0.17728036]
[1680689800207,3.01761076,28525.0,28524.0,0.17728036]
[1680689800362,3.01731076,28525.0,28524.0,0.17734036]
[1680689800767,2.86868999,28525.0,28524.0,0.17734036]
[1680689800940,2.91450221,28525.0,28524.0,0.16662238]
[1680689801144,2.91085514,28525.0,28524.0,0.16662238]
[1680689801344,2.86898999,28525.0,28524.0,0.16662238]
[1680689801894,2.84931076,28525.0,28524.0,0.16662238]
[1680689802835,2.79919913,28525.0,28524.0,0.16668238]
[1680689803082,2.84612996,28525.0,28524.0,0.16662238]
[1680689803455,2.79919913,28525.0,28524.0,0.16668238]
[1680689803648,2.79919913,28525.0,28524.0,0.16662238]
[1680689803829,3.0175912,28525.0,28524.0,0.16662238]
[1680689804003,2.8492912,28525.0,28524.0,0.16662238]
[1680689804212,2.96749913,28525.0,28524.0,0.16668238]
[1680689804458,2.79919913,28525.0,28524.0,0.16668238]
[1680689804661,3.04990424,28525.0,28524.0,0.16668238]
[1680689805181,3.04989424,28525.0,28524.0,0.16668238]
[1680689805588,3.04989424,28525.0,28524.0,0.16662238]
[1680689805797,3.00897572,28525.0,28524.0,0.15785238]
[1680689806022,3.00927572,28525.0,28524.0,0.15785238]
[1680689806401,2.79948913,28525.0,28524.0,0.15785238]
[1680689806821,2.87318913,28525.0,28524.0,0.15785238]
[1680689807024,2.87278913,28525.0,28524.0,0.15785238]
[1680689807755,3.08256737,28525.0,28524.0,0.15785238]
[1680689807968,2.87278913,28525.0,28524.0,0.15785238]
[1680689808362,2.91576659,28525.0,28524.0,0.15785238]
[1680689810290,2.87278913,28525.0,28524.0,0.15785238]
[1680689810465,2.9172835,28525.0,28524.0,0.15785238]
[1680689811596,2.87278913,28525.0,28524.0,0.15785238]
[1680689811772,2.91930705,28525.0,28524.0,0.15785238]
[1680689813344,2.87278913,28525.0,28524.0,0.15785238]
[1680689814095,2.71756587,28525.0,28524.0,0.15785238]
[1680689817789,2.89286587,28525.0,28524.0,0.15785238]
[1680689818442,2.89238587,28525.0,28524.0,0.15785238]
[1680689819444,2.89238587,28525.0,28523.0,0.00018]
[1680689819445,0.258736,28524.0,28523.0,0.00018]
[1680689819646,1.67056176,28524.0,28521.0,0.00018]
[1680689819826,0.56214656,28522.0,28520.0,0.00018]
[1680689820022,0.85778756,28521.0,28520.0,0.00018]
[1680689820228,0.88408356,28521.0,28520.0,6e-05]
[1680689820585,0.88408356,28521.0,28519.0,0.00018]
[1680689820787,0.57695956,28520.0,28519.0,0.00018]
[1680689820991,0.90123656,28520.0,28519.0,0.00018]
[1680689822691,1.00349392,28520.0,28517.0,0.00018]
[1680689822924,0.88530956,28519.0,28517.0,0.00018]
[1680689823106,0.064079,28518.0,28517.0,0.00018]
[1680689823319,0.42728956,28518.0,28517.0,0.00018]
[1680689823545,0.74832856,28518.0,28517.0,0.00018]
[1680689824009,0.7736879,28518.0,28517.0,0.42270737]
[1680689824220,0.7526489,28518.0,28517.0,0.00018]
[1680689824442,0.7526489,28518.0,28517.0,0.44071879]
[1680689824878,0.76912331,28518.0,28517.0,0.44065879]
[1680689826860,0.76912331,28518.0,28517.0,0.00012]
[1680689827062,0.76912331,28518.0,28516.0,0.0734]
[1680689827312,0.70771656,28517.0,28516.0,0.0734]
[1680689827516,0.71297656,28517.0,28516.0,0.07352]
[1680689828943,0.71297656,28517.0,28516.0,0.00012]
[1680689829147,0.71297656,28517.0,28516.0,6e-05]
[1680689830233,0.72297656,28517.0,28516.0,6e-05]
[1680689830652,0.71297656,28517.0,28516.0,0.44874366]
[1680689830866,0.71297656,28517.0,28516.0,0.44886366]
[1680689831085,0.71297656,28517.0,28516.0,0.44874366]
[1680689831086,0.71327656,28517.0,28516.0,0.44874366]
[1680689831444,0.72997656,28517.0,28516.0,0.44886366]
[1680689832030,0.70386739,28517.0,28516.0,0.44880366]
[1680689832887,0.7288649,28517.0,28516.0,0.44880366]
[1680689839206,0.7291649,28517.0,28516.0,0.44874366]
[1680689839868,0.7288649,28517.0,28516.0,0.44880366]
[1680689843537,0.7203649,28517.0,28516.0,0.44880366]
[1680689847066,0.7288649,28517.0,28516.0,0.44880366]
[1680689847870,0.7291649,28517.0,28516.0,0.44862366]
[1680689848069,0.7291649,28517.0,28516.0,0.44856366]
[1680689848866,0.73780821,28517.0,28515.0,0.00018]
[1680689849066,0.045628,28516.0,28514.0,0.109893]
[1680689849309,0.01578,28515.0,28514.0,0.109893]
[1680689849620,0.065104,28515.0,28514.0,0.49036557]
[1680689849844,0.065104,28515.0,28514.0,0.49048557]
[1680689850143,0.065104,28515.0,28514.0,0.41668557]
[1680689850758,0.065104,28515.0,28514.0,0.036273]
[1680689850973,0.069104,28515.0,28514.0,0.036093]
[1680689851797,0.09712226,28515.0,28514.0,0.036093]
[1680689853611,0.49954943,28515.0,28514.0,0.036093]
[1680689855513,0.49554943,28515.0,28514.0,0.036093]
[1680689856551,0.49584943,28515.0,28514.0,0.036093]
[1680689856907,0.49554943,28515.0,28514.0,0.036093]
[1680689857117,0.51254943,28515.0,28514.0,0.036093]
[1680689861904,0.51254943,28515.0,28514.0,0.036153]
[1680689862884,0.48453117,28515.0,28514.0,0.036153]
[1680689867050,0.55833117,28515.0,28514.0,0.036153]
[1680689869536,0.51911456,28515.0,28514.0,0.036153]
[1680689870854,0.51911456,28515.0,28514.0,0.46417032]
[1680689871053,0.46979056,28515.0,28514.0,0.46429032]
[1680689872889,0.51662456,28515.0,28514.0,0.46429032]
[1680689874662,0.50610456,28515.0,28514.0,0.46429032]
[1680689874876,0.50704656,28515.0,28514.0,0.46429032]
[1680689876314,0.45927056,28515.0,28514.0,0.46429032]
[1680689876515,0.45401056,28515.0,28514.0,0.46429032]
[1680689877596,0.45927056,28515.0,28514.0,0.46429032]
[1680689878912,0.38547056,28515.0,28514.0,0.46429032]
[1680689880953,0.43215656,28515.0,28514.0,0.46429032]
[1680689882504,0.43215656,28515.0,28514.0,0.036273]
[1680689882738,0.43215656,28515.0,28514.0,0.036093]
[1680689883098,0.38547056,28515.0,28514.0,0.036153]
[1680689884049,0.43076256,28515.0,28514.0,0.036153]
[1680689884623,0.38547056,28515.0,28514.0,0.38351451]
[1680689884823,0.38547056,28515.0,28514.0,0.38363451]
[1680689884824,0.38021056,28515.0,28514.0,0.38363451]
[1680689885051,0.38547056,28515.0,28514.0,0.38363451]
[1680689885244,0.017,28515.0,28514.0,0.38363451]
[1680689885445,0.02226,28515.0,28514.0,0.38357451]
[1680689887680,0.070086,28515.0,28514.0,0.38363451]
[1680689889441,0.15415761,28515.0,28514.0,0.38363451]
[1680689890767,0.070086,28515.0,28514.0,0.38363451]
[1680689890978,0.02226,28515.0,28514.0,0.38363451]
[1680689891161,0.06976,28515.0,28514.0,0.38363451]
[1680689891627,0.02226,28515.0,28514.0,0.38363451]
[1680689891863,0.066686,28515.0,28514.0,0.38363451]
[1680689892738,0.02226,28515.0,28514.0,0.38363451]
[1680689893176,0.068171,28515.0,28514.0,0.38363451]
[1680689893587,0.19431641,28515.0,28514.0,0.38363451]
[1680689896840,0.068171,28515.0,28514.0,0.38363451]
[1680689898327,0.068171,28515.0,28514.0,0.036273]
[1680689898526,0.068171,28515.0,28514.0,0.036093]
[1680689899969,0.15228314,28515.0,28514.0,0.036093]
[1680689900174,0.10637214,28515.0,28514.0,0.036093]
[1680689900497,0.02226,28515.0,28514.0,0.036093]
[1680689900881,0.069418,28515.0,28514.0,0.036093]
[1680689902318,0.02226,28515.0,28514.0,0.036093]
[1680689902519,0.19598705,28515.0,28514.0,0.036093]
[1680689902650,0.19598705,28515.0,28514.0,0.036153]
[1680689903096,0.28009984,28515.0,28514.0,0.036153]
[1680689903298,0.19598705,28515.0,28514.0,0.036153]
[1680689903554,0.28009988,28515.0,28514.0,0.036153]
[1680689903720,0.55069761,28515.0,28514.0,0.036153]
[1680689903918,0.63481066,28515.0,28514.0,0.036153]
[1680689904191,0.42452756,28515.0,28514.0,0.036153]
[1680689905102,0.42452756,28515.0,28514.0,0.036093]
[1680689909087,0.49832756,28515.0,28514.0,0.036093]
[1680689909316,0.50682756,28515.0,28514.0,0.036093]
[1680689913113,0.52786856,28515.0,28514.0,0.036093]
[1680689914659,0.50682756,28515.0,28514.0,0.036093]
[1680689916073,0.67506406,28515.0,28514.0,0.036093]
[1680689916282,0.50682756,28515.0,28514.0,0.036093]
[1680689916500,0.67506406,28515.0,28514.0,0.036093]
[1680689916791,0.50682756,28515.0,28514.0,0.036093]
[1680689917215,0.67506406,28515.0,28514.0,0.036093]
[1680689917439,0.50682756,28515.0,28514.0,0.036093]
[1680689917645,0.67506406,28515.0,28514.0,0.036093]
[1680689918947,0.50682756,28515.0,28514.0,0.036093]
[1680689920029,0.67506406,28515.0,28514.0,0.036093]
[1680689920244,0.50682756,28515.0,28514.0,0.036093]
[1680689921250,0.67506406,28515.0,28514.0,0.036093]
[1680689921416,0.50682756,28515.0,28514.0,0.036093]
[1680689922070,0.67506406,28515.0,28514.0,0.036093]
[1680689922284,0.50682756,28515.0,28514.0,0.036093]
[1680689922492,0.67506406,28515.0,28514.0,0.036093]
[1680689922910,0.50682756,28515.0,28514.0,0.036093]
[1680689924035,0.67506406,28515.0,28514.0,0.036093]
[1680689925438,0.50682756,28515.0,28514.0,0.036093]
[1680689925646,0.67506406,28515.0,28514.0,0.036093]
[1680689927044,0.72230032,28515.0,28514.0,0.036093]
[1680689927248,0.79600032,28515.0,28514.0,0.036093]
[1680689928717,1.09600032,28515.0,28514.0,0.036093]
[1680689929573,1.72046188,28515.0,28514.0,0.036093]
[1680689930197,1.51016834,28515.0,28514.0,0.036093]
[1680689939515,1.51022834,28515.0,28514.0,0.036093]
[1680689939675,1.51046834,28515.0,28514.0,0.036093]
[1680689939873,1.51016834,28515.0,28514.0,0.036093]
[1680689940809,1.34793184,28515.0,28514.0,0.036093]
[1680689941134,1.32493184,28515.0,28514.0,0.036093]
[1680689941354,1.35193184,28515.0,28514.0,0.036093]
[1680689944638,1.52010351,28515.0,28514.0,0.036093]
[1680689945336,1.52010351,28515.0,28514.0,0.03602997]
[1680689947536,1.47254651,28515.0,28514.0,0.03602997]
[1680689947901,1.05837849,28515.0,28514.0,0.03602997]
[1680689949259,1.0582812,28515.0,28514.0,0.03602997]
[1680689950133,1.18441029,28515.0,28514.0,0.03602997]
[1680689950312,1.23394829,28515.0,28514.0,0.03602997]
[1680689951516,1.64812419,28515.0,28514.0,0.03602997]
[1680689951862,1.23767737,28515.0,28514.0,0.10642997]
[1680689952064,0.81956273,28515.0,28514.0,0.10642997]
[1680689952279,0.81956273,28515.0,28514.0,0.53336234]
[1680689952490,0.81956273,28515.0,28514.0,0.43204376]
[1680689952696,0.81956273,28515.0,28514.0,0.44434376]
[1680689953119,0.79256273,28515.0,28514.0,0.44434376]